{"text_format":"1","workbook":"xlsx","n_sheets":1,"sheets":["2017"],"not_rendered":{"charts":0,"images":0,"macros":1,"external_links":0,"defined_names":1,"comments":0,"pivot_tables":0},"unopened":[],"bounds":{"document_bytes":16777216,"sheet_cells":100000,"rows_first":2000,"rows_last":500,"rows_between":2000,"halvings":0,"cell_chars":16384,"cell_head_chars":4096},"cells_cut":0,"cells_raw":0,"read":"whole","date_system":"1900"}

{"sheet":"2017","index":0,"n_rows":63,"n_cols":49,"rows_kept":63,"cut":false,"hidden":false,"merged":[[57,3,57,9],[54,3,54,9],[55,3,55,9],[59,3,59,9],[60,3,60,9],[58,3,58,9],[56,3,56,9],[51,3,51,9],[52,3,52,9],[50,3,50,9],[47,3,47,9],[53,3,53,9],[49,3,49,9],[1,32,1,48],[3,5,3,10],[1,14,1,30],[46,3,46,9],[48,3,48,9]]}
[]
[null,null,null,null,null,null,null,null,null,null,null,null,null,null,"American League Schedule 2017",null,null,null,null,null,null,null,null,null,null,null,null,null,null,null,null,null,"National League Schedule 2017"]
[]
[null,null,null,null,null,"STARTERS",null,null,null,null,null,null,null,null,"Bos","TB","NYY","Tor","Bal",null,"Det","ChW","KC","Cle","Min",null,"Oak","LAA","Sea","Hou","Tex",null,"NYM","Mia","Was","Phi","Atl",null,"StL","Mil","ChC","Pit","Cin",null,"SF","Arz","LAD","Col","SD"]
[null,null,null,null,null,null,null,null,null,null,null,null,null,null,"A1","A2","A3","A4","A5",null,"B1","B2","B3","B4","B5",null,"C1","C2","C3","C4","C5",null,"D1","D2","D3","D4","D5",null,"E1","E2","E2","E4","E5",null,"F1","F2","F3","F4","F5"]
[null,null,null,null,null,null,null,null,null,null,null,null," "]
[null,null,null,"April"]
[null,null,1,"15th-17th",null,3,null,"A","B","C",null,null,null,null,"TB","NYY","Tor","Bal","Bos",null,"ChW","KC","Cle","Min","Det",null,"LAA","Sea","Hou","Tex","Oak",null,"Mia","Was","Phi","Atl","NYM",null,"Mil","ChC","Pit","Cin","StL",null,"Arz","LAD","Col","SD","SF"]
[null,null,2,"19th-21st",null,3,null,"E","A","B",null,null,null,null,"NYY","Tor","Bal","Bos","TB",null,"KC","Cle","Min","Det","ChW",null,"Sea","Hou","Tex","Oak","LAA",null,"Was","Phi","Atl","NYM","Mia",null,"ChC","Pit","Cin","StL","Mil",null,"LAD","Col","SD","SF","Arz"]
[null,null,3,"22nd-24th",null,3,null,"C","D","A",null,null,null,null,"Tor","Bal","Bos","TB","NYY",null,"Cle","Min","Det","ChW","KC",null,"Hou","Tex","Oak","LAA","Sea",null,"Phi","Atl","NYM","Mia","Was",null,"Pit","Cin","StL","Mil","ChC",null,"Col","SD","SF","Arz","LAD"]
[null,null,4,"26th-28th",null,3,null,"E","B","D",null,null,null,null,"Bal","Bos","TB","NYY","Tor",null,"Min","Det","ChW","KC","Cle",null,"Tex","Oak","LAA","Sea","Hou",null,"Atl","NYM","Mia","Was","Phi",null,"Cin","StL","Mil","ChC","Pit",null,"SD","SF","Arz","LAD","Col"]
[]
[null,null,null,"May"]
[null,null,5,"13th-15th",null,3,null,"C","A","B",null,null,3,null,"SF","Arz","LAD","Col","SD",null,"NYM","Mia","Was","Phi","Atl",null,"StL","Mil","ChC","Pit","Cin",null,"Bos","TB","NYY","Tor","Bal",null,"Det","ChW","KC","Cle","Min",null,"Oak","LAA","Sea","Hou","Tex"]
[null,null,6,"17th-19th",null,3,null,"E","C","D",null,null,1,null,"Arz","LAD","Col","SD","SF",null,"Mia","Was","Phi","Atl","NYM",null,"Mil","ChC","Pit","Cin","StL",null,"TB","NYY","Tor","Bal","Bos",null,"ChW","KC","Cle","Min","Det",null,"LAA","Sea","Hou","Tex","Oak"]
[null,null,7,"21st-23rd",null,3,null,"A","B","C",null,null,2,null,"LAD","Col","SD","SF","Arz",null,"Was","Phi","Atl","NYM","Mia",null,"ChC","Pit","Cin","StL","Mil",null,"NYY","Tor","Bal","Bos","TB",null,"KC","Cle","Min","Det","ChW",null,"Sea","Hou","Tex","Oak","LAA"]
[null,null,8,"24th-26th",null,3,null,"E","D","A",null,null,null,null,"Col","SD","SF","Arz","LAD",null,"Phi","Atl","NYM","Mia","Was",null,"Pit","Cin","StL","Mil","ChC",null,"Tor","Bal","Bos","TB","NYY",null,"Cle","Min","Det","ChW","KC",null,"Hou","Tex","Oak","LAA","Sea"]
[null,null,9,"28th-30th",null,3,null,"B","C","D",null,null,null,null,"SD","SF","Arz","LAD","Col",null,"Atl","NYM","Mia","Was","Phi",null,"Cin","StL","Mil","ChC","Pit",null,"Bal","Bos","TB","NYY","Tor",null,"Min","Det","ChW","KC","Cle",null,"Tex","Oak","LAA","Sea","Hou"]
[]
[null,null,null,"June"]
[null,null,10,"14th-16th",null,3,null,"A","B","C",null,null,null,null,"Oak","LAA","Sea","Hou","Tex",null,"Bos","TB","NYY","Tor","Bal",null,"Det","ChW","KC","Cle","Min",null,"SF","Arz","LAD","Col","SD",null,"NYM","Mia","Was","Phi","Atl",null,"StL","Mil","ChC","Pit","Cin"]
[null,null,11,"17th-19th",null,3,null,"E","D","A",null,null,null,null,"LAA","Sea","Hou","Tex","Oak",null,"TB","NYY","Tor","Bal","Bos",null,"ChW","KC","Cle","Min","Det",null,"Arz","LAD","Col","SD","SF",null,"Mia","Was","Phi","Atl","NYM",null,"Mil","ChC","Pit","Cin","StL"]
[null,null,12,"21st-23rd",null,3,null,"B","C","D",null,null,null,null,"Sea","Hou","Tex","Oak","LAA",null,"NYY","Tor","Bal","Bos","TB",null,"KC","Cle","Min","Det","ChW",null,"LAD","Col","SD","SF","Arz",null,"Was","Phi","Atl","NYM","Mia",null,"ChC","Pit","Cin","StL","Mil"]
[null,null,13,"24th-26th",null,3,null,"E","A","B",null,null,null,null,"Hou","Tex","Oak","LAA","Sea",null,"Tor","Bal","Bos","TB","NYY",null,"Cle","Min","Det","ChW","KC",null,"Col","SD","SF","Arz","LAD",null,"Phi","Atl","NYM","Mia","Was",null,"Pit","Cin","StL","Mil","ChC"]
[null,null,14,"28th-30th",null,3,null,"C","D","A",null,null,null,null,"Tex","Oak","LAA","Sea","Hou",null,"Bal","Bos","TB","NYY","Tor",null,"Min","Det","ChW","KC","Cle",null,"SD","SF","Arz","LAD","Col",null,"Atl","NYM","Mia","Was","Phi",null,"Cin","StL","Mil","ChC","Pit"]
[]
[null,null,null,"July",null,null,null,null,null,null,null,null,null,"`"]
[null,null,15,"15th-17th",null,3,null,"A","B","C",null,null,null,null,"NYY","Tor","Bal","Bos","TB",null,"KC","Cle","Min","Det","ChW",null,"Sea","Hou","Tex","Oak","LAA",null,"Was","Phi","Atl","NYM","Mia",null,"ChC","Pit","Cin","StL","Mil",null,"LAD","Col","SD","SF","Arz"]
[null,null,16,"19th-21st",null,3,null,"E","A","B",null,null,null,null,"Bal","Bos","TB","NYY","Tor",null,"Min","Det","ChW","KC","Cle",null,"Tex","Oak","LAA","Sea","Hou",null,"Atl","NYM","Mia","Was","Phi",null,"Cin","StL","Mil","ChC","Pit",null,"SD","SF","Arz","LAD","Col"]
[null,null,17,"22nd-24th",null,3,null,"C","D","A",null,null,null,null,"TB","NYY","Tor","Bal","Bos",null,"ChW","KC","Cle","Min","Det",null,"LAA","Sea","Hou","Tex","Oak",null,"Mia","Was","Phi","Atl","NYM",null,"Mil","ChC","Pit","Cin","StL",null,"Arz","LAD","Col","SD","SF"]
[null,null,18,"26th-28th",null,3,null,"E","B","D",null,null,null,null,"Tor","Bal","Bos","TB","NYY",null,"Cle","Min","Det","ChW","KC",null,"Hou","Tex","Oak","LAA","Sea",null,"Phi","Atl","NYM","Mia","Was",null,"Pit","Cin","StL","Mil","ChC",null,"Col","SD","SF","Arz","LAD"]
[]
[null,null,null,"August"]
[null,null,19,"13th-15th",null,3,null,"A","B","C",null,null,null,null,"Det","ChW","KC","Cle","Min",null,"Oak","LAA","Sea","Hou","Tex",null,"Bos","TB","NYY","Tor","Bal",null,"StL","Mil","ChC","Pit","Cin",null,"SF","Arz","LAD","Col","SD",null,"NYM","Mia","Was","Phi","Atl"]
[null,null,20,"16th-18th",null,3,null,"E","D","A",null,null,null,null,"ChW","KC","Cle","Min","Det",null,"LAA","Sea","Hou","Tex","Oak",null,"TB","NYY","Tor","Bal","Bos",null,"Mil","ChC","Pit","Cin","StL",null,"Arz","LAD","Col","SD","SF",null,"Mia","Was","Phi","Atl","NYM"]
[null,null,21,"20th-22nd",null,3,null,"B","C","D",null,null,null,null,"KC","Cle","Min","Det","ChW",null,"Sea","Hou","Tex","Oak","LAA",null,"NYY","Tor","Bal","Bos","TB",null,"ChC","Pit","Cin","StL","Mil",null,"LAD","Col","SD","SF","Arz",null,"Was","Phi","Atl","NYM","Mia"]
[null,null,22,"23rd-25th",null,3,null,"E","A","B",null,null,null,null,"Cle","Min","Det","ChW","KC",null,"Hou","Tex","Oak","LAA","Sea",null,"Tor","Bal","Bos","TB","NYY",null,"Pit","Cin","StL","Mil","ChC",null,"Col","SD","SF","Arz","LAD",null,"Phi","Atl","NYM","Mia","Was"]
[null,null,23,"27th-29th",null,3,null,"C","D","A",null,null,null,null,"Min","Det","ChW","KC","Cle",null,"Tex","Oak","LAA","Sea","Hou",null,"Bal","Bos","TB","NYY","Tor",null,"Cin","StL","Mil","ChC","Pit",null,"SD","SF","Arz","LAD","Col",null,"Atl","NYM","Mia","Was","Phi"]
[]
[null,null,null,"September"]
[null,null,24,"13th-15th",null,3,null,"A","B","C",null,null,null,null,"Bal","Bos","TB","NYY","Tor",null,"Min","Det","ChW","KC","Cle",null,"Tex","Oak","LAA","Sea","Hou",null,"Atl","NYM","Mia","Was","Phi",null,"Cin","StL","Mil","ChC","Pit",null,"SD","SF","Arz","LAD","Col"]
[null,null,25,"17th-19th",null,3,null,"E","A","B",null,null,null,null,"Tor","Bal","Bos","TB","NYY",null,"Cle","Min","Det","ChW","KC",null,"Hou","Tex","Oak","LAA","Sea",null,"Phi","Atl","NYM","Mia","Was",null,"Pit","Cin","StL","Mil","ChC",null,"Col","SD","SF","Arz","LAD"]
[null,null,26,"20th-22nd",null,3,null,"C","D","A",null,null,null,null,"NYY","Tor","Bal","Bos","TB",null,"KC","Cle","Min","Det","ChW",null,"Sea","Hou","Tex","Oak","LAA",null,"Was","Phi","Atl","NYM","Mia",null,"ChC","Pit","Cin","StL","Mil",null,"LAD","Col","SD","SF","Arz"]
[null,null,27,"24th-26th",null,3,null,"E","B","D",null,null,null,null,"TB","NYY","Tor","Bal","Bos",null,"ChW","KC","Cle","Min","Det",null,"LAA","Sea","Hou","Tex","Oak",null,"Mia","Was","Phi","Atl","NYM",null,"Mil","ChC","Pit","Cin","StL",null,"Arz","LAD","Col","SD","SF"]
[null,null,null,null,null,null,null,null,null,null," "]
[null,null,null,null,null,null,null,null,null,null," "]
[null,null,"A1","Boston Red Sox",null,null,null,null,null,null,1,"Bos",null,null,"D1","New York Mets",null,null,null,null,null,null,17,"Phi"]
[null,null,"A2","Tampa Bay Devil Rays",null,null,null,null,null,null,3,"NYY",null,null,"D2","Miami Marlins",null,null,null,null,null,null,15,"NYM",null,null,null,"Starts by Month"]
[null,null,"A3","New York Yankees",null,null,null,null,null,null,2,"Tor",null,null,"D3","Philadelphia Phillies",null,null,null,null,null,null,18,"Atl",null,null,null,null,null,null,"Apr",null,"May","Jun","Jul","Aug","Sep"]
[null,null,"A4","Toronto Blue Jays",null,null,null,null,null,null,4,"Balt",null,null,"D4","Washington Nationals",null,null,null,null,null,null,16,"Mia",null,null,null,"A",{"$f":"COUNTIF($H$8:$K$44,AB50)","v":20},null,{"$f":"COUNTIF($H$8:$K$12,$AB50)","v":3},null,{"$f":"COUNTIF($H$14:$K$18,$AB50)","v":3},{"$f":"COUNTIF($H$21:$K$25,$AB50)","v":4},{"$f":"COUNTIF($H$28:$K$31,$AB50)","v":3},{"$f":"COUNTIF($H$34:$K$38,$AB50)","v":4},{"$f":"COUNTIF($H$41:$K$44,$AB50)","v":3}]
[null,null,"A5","Baltimore Orioles",null,null,null,null,null,null,0,"TB",null,null,"D5","Atlanta Braves",null,null,null,null,null,null,14,"Was",null,null,null,"B",{"$f":"COUNTIF($H$8:$K$44,AB51)","v":18},null,{"$f":"COUNTIF($H$8:$K$12,$AB51)","v":3},null,{"$f":"COUNTIF($H$14:$K$18,$AB51)","v":3},{"$f":"COUNTIF($H$21:$K$25,$AB51)","v":3},{"$f":"COUNTIF($H$28:$K$31,$AB51)","v":3},{"$f":"COUNTIF($H$34:$K$38,$AB51)","v":3},{"$f":"COUNTIF($H$41:$K$44,$AB51)","v":3}]
[null,null,"B1","Detroit Tigers",null,null,null,null,null,null,7,"Det",null,null,"E1","St. Louis Cardinals",null,null,null,null,null,null,24,"Pit",null,null,null,"C",{"$f":"COUNTIF($H$8:$K$44,AB52)","v":16},null,2,null,{"$f":"COUNTIF($H$14:$K$18,$AB52)","v":4},{"$f":"COUNTIF($H$21:$K$25,$AB52)","v":3},{"$f":"COUNTIF($H$28:$K$31,$AB52)","v":2},{"$f":"COUNTIF($H$34:$K$38,$AB52)","v":3},{"$f":"COUNTIF($H$41:$K$44,$AB52)","v":2}]
[null,null,"B2","Chicago White Sox",null,null,null,null,null,null,5,"ChW",null,null,"E2","Milwaukee Brewers",null,null,null,null,null,null,22,"Cin",null,null,null,"D",{"$f":"COUNTIF($H$8:$K$44,AB53)","v":15},null,2,null,{"$f":"COUNTIF($H$14:$K$18,$AB53)","v":3},{"$f":"COUNTIF($H$21:$K$25,$AB53)","v":3},{"$f":"COUNTIF($H$28:$K$31,$AB53)","v":2},{"$f":"COUNTIF($H$34:$K$38,$AB53)","v":3},{"$f":"COUNTIF($H$41:$K$44,$AB53)","v":2}]
[null,null,"B3","Kansas City Royals",null,null,null,null,null,null,8,"Cle",null,null,"E3","Chicago Cubs",null,null,null,null,null,null,19,"ChC",null,null,null,"E",{"$f":"COUNTIF($H$8:$K$44,AB54)","v":12},null,2,null,{"$f":"COUNTIF($H$14:$K$18,$AB54)","v":2},{"$f":"COUNTIF($H$21:$K$25,$AB54)","v":2},{"$f":"COUNTIF($H$28:$K$31,$AB54)","v":2},{"$f":"COUNTIF($H$34:$K$38,$AB54)","v":2},{"$f":"COUNTIF($H$41:$K$44,$AB54)","v":2}]
[null,null,"B4","Cleveland Indians",null,null,null,null,null,null,6,"Min",null,null,"E4","Pittsburgh Pirates",null,null,null,null,null,null,23,"STL",null,null,null,null,{"$f":"SUM(AC50:AC54)","v":81},null,{"$f":"SUM(AE50:AE54)","v":12},null,{"$f":"SUM(AG50:AG54)","v":15},15,12,15,12]
[null,null,"B5","Minnesota Twins",null,null,null,null,null,null,9,"KC",null,null,"E5","Cincinnati Reds",null,null,null,null,null,null,20,"Mil",null,null,null,null,null,null,null,null,null,null,null,null,null," "]
[null,null,"C1","Oakland Athletics",null,null,null,null,null,null,11,"Sea",null,null,"F1","San Francisco Giants",null,null,null,null,null,null,29,"COl",null,null,null,null,null,null,null,null,null,null,null,null,null," "]
[null,null,"C2","Seattle Mariners",null,null,null,null,null,null,12,"LAA",null,null,"F2","Arizona Diamondbacks",null,null,null,null,null,null,25,"SD",null,null,null,null,null,null,null,null,null,null,null,null,null," "]
[null,null,"C3","Los Angeles Angels",null,null,null,null,null,null,10,"Oak",null,null,"F3","Los Angeles Dodgers",null,null,null,null,null,null,27,"Arz",null,null,null,null,null,null,null,null,null,null,null,null,null," "]
[null,null,"C4","Houston Astros",null,null,null,null,null,null,21,"Hou",null,null,"F4","Colorado Rockies",null,null,null,null,null,null,26,"SF",null,null,null,null,null,null,null,null,null,null,null,null,null," "]
[null,null,"C5","Texas Rangers",null,null,null,null,null,null,13,"Tex",null,null,"F5","San Diego Padres",null,null,null,null,null,null,28,"LAD",null,null,null,null,null,null,null,null,null,null,null,null,null," "]
[null,null,null,null,null,null,null,null,null,null," "]
[null,null,null,null,null,null,null,null,null,null," "]